bitfinex-derivatives/quotes_SOLF0:USTF0_20250919
["timestamp","ask_amount","ask_price","bid_price","bid_amount"]
[1758285308949,6.97902897,240.73,240.69,6.6]
[1758285310151,0.02902897,240.73,240.69,6.6]
[1758285310350,1.13315147,240.71,240.65,320.36]
[1758285310542,1.13315147,240.71,240.67,102.76]
[1758285310747,1.13315147,240.71,240.68,6.6]
[1758285311151,1.13315147,240.71,240.68,109.36]
[1758285312050,1.13315147,240.71,240.68,6.6]
[1758285312249,1.13315147,240.71,240.68,109.36]
[1758285312846,1.13315147,240.71,240.69,6.6]
[1758285313653,1.13315147,240.71,240.68,102.76]
[1758285314257,1.13315147,240.71,240.69,6.6]
[1758285314454,0.02902897,240.73,240.7,6.6]
[1758285314649,0.02902897,240.73,240.69,3.7371]
[1758285314854,0.02902897,240.73,240.7,6.6]
[1758285315056,0.02902897,240.73,240.72,6.6]
[1758285321158,0.02902897,240.73,240.72,109.34]
[1758285321758,0.02902897,240.73,240.72,6.6]
[1758285322052,0.02902897,240.73,240.72,109.74]
[1758285324058,0.02902897,240.73,240.72,109.32]
[1758285327558,0.02902897,240.73,240.72,6.6]
[1758285327755,0.02902897,240.73,240.72,109.3]
[1758285327965,0.02902897,240.73,240.72,6.6]
[1758285328263,0.02902897,240.73,240.72,109.3]
[1758285329862,6.53,240.86,240.72,102.7]
[1758285330066,1.13315147,240.85,240.73,6.69]
[1758285330269,1.13315147,240.85,240.72,102.7]
[1758285330270,1.13315147,240.85,240.75,6.69]
[1758285330465,1.13315147,240.85,240.76,102.7]
[1758285330966,1.13315147,240.85,240.78,3.7358]
[1758285331268,1.13315147,240.85,240.79,102.7]
[1758285334869,1.13315147,240.85,240.81,6.69]
[1758285335670,1.13315147,240.85,240.8,6.69]
[1758285335973,6.53,240.9,240.8,6.69]
[1758285336173,2.89476019,240.89,240.8,6.69]
[1758285336366,6.53,240.9,240.8,6.69]
[1758285336768,6.53,240.9,240.82,0.02704931]
[1758285336968,6.53,240.9,240.83,102.66]
[1758285340464,6.53,240.9,240.82,3.76204931]
[1758285340663,10.2641,240.9,240.82,0.02704931]
[1758285342078,10.2641,240.9,240.83,6.69]
[1758285343272,6.53,240.9,240.84,3.7349]
[1758285343578,6.53,240.9,240.83,6.69]
[1758285343770,6.53,240.9,240.82,0.02704931]
[1758285344376,2.8949561,240.89,240.82,0.02704931]
[1758285344676,6.53,240.9,240.82,0.02704931]
[1758285344876,6.62915681,240.89,240.82,0.02704931]
[1758285345070,3.7342,240.89,240.82,0.02704931]
[1758285346478,6.53,240.9,240.83,6.69]
[1758285347276,6.53,240.9,240.85,3.7346]
[1758285347477,6.53,240.9,240.86,6.69]
[1758285347973,6.53,240.92,240.85,3.7346]
[1758285349280,6.53,240.92,240.86,3.7344]
[1758285349480,6.53,240.92,240.86,10.4244]
[1758285349871,6.53,240.92,240.82,6.71704931]
[1758285350077,6.53,240.9,240.82,0.02704931]
[1758285350285,4.66385803,240.91,240.82,0.02704931]
[1758285350286,6.53,240.88,240.82,0.02704931]
[1758285350482,10.2644,240.88,240.79,3.7355]
[1758285350682,6.53,240.88,240.78,6.69]
[1758285350986,6.53,240.9,240.83,0.03120169]
[1758285351283,6.53,240.9,240.81,6.69]
[1758285351581,10.2641,240.9,240.84,0.02776959]
[1758285355182,6.53,240.9,240.84,6.71776959]
[1758285356283,6.53,240.9,240.87,6.69]
[1758285357484,3.7333,240.94,240.87,10.4243]
[1758285357485,10.2633,240.94,240.87,10.4243]
[1758285357681,2.89613085,240.93,240.87,10.4243]
[1758285357879,6.89,240.97,240.84,0.02776959]
[1758285358084,6.89,240.95,240.84,7.23776959]
[1758285358280,6.84,240.93,240.84,7.23776959]
[1758285358482,6.84,240.91,240.84,7.21]
[1758285358679,10.5738,240.91,240.85,3.7346]
[1758285358987,9.73676059,240.9,240.86,0.0315034]
[1758285359283,2.89785511,240.89,240.86,0.0315034]
[1758285359484,6.84,240.93,240.86,0.0315034]
[1758285359788,6.84,240.91,240.86,0.0315034]
[1758285359982,2.89785645,240.9,240.86,0.0315034]
[1758285360182,6.84,240.88,240.86,0.0315034]
[1758285360384,6.84,240.93,240.86,0.0315034]
[1758285360585,6.84,240.91,240.86,0.0315034]
[1758285360787,6.84,240.89,240.86,0.0315034]
[1758285361386,6.84,240.87,240.86,0.0315034]
[1758285361991,6.84,240.89,240.86,0.0315034]
[1758285362588,6.84,240.88,240.86,0.0315034]
[1758285362781,6.84,240.87,240.86,0.0315034]
[1758285364589,6.84,240.89,240.86,0.0315034]
[1758285365990,6.84,240.89,240.86,3.7660034]
[1758285366491,3.7333,240.94,240.88,3.7343]
[1758285366687,6.84,240.92,240.86,6.9915034]
[1758285367884,6.84,240.9,240.86,0.0315034]
[1758285368187,6.84,240.96,240.86,0.0315034]
[1758285368387,6.84,240.92,240.86,0.0315034]
[1758285368588,6.84,240.9,240.86,0.0315034]
[1758285368788,2.89967652,240.89,240.86,0.0315034]
[1758285368988,1.77009324,240.93,240.86,0.0315034]
[1758285368989,9.73967652,240.88,240.86,0.0315034]
[1758285369190,6.84,240.88,240.86,0.0315034]
[1758285369890,10.5737,240.92,240.86,0.0315034]
[1758285370091,6.84,240.9,240.86,0.0315034]
[1758285370292,2.89998294,240.89,240.86,0.0315034]
[1758285371192,9.73998294,240.89,240.86,0.0315034]
[1758285371388,6.84,240.96,240.86,0.0315034]
[1758285371595,2.90107416,240.95,240.87,6.96]
[1758285371789,6.84,240.96,240.87,6.96]
[1758285371991,2.90039081,240.95,240.87,6.96]
[1758285372182,6.84,240.96,240.87,6.96]
[1758285372383,6.84,240.94,240.86,0.0315034]
[1758285372583,6.84,240.94,240.82,6.96]
[1758285372584,2.90107483,240.93,240.82,6.96]
[1758285372885,2.90107483,240.92,240.88,0.02744043]
[1758285373188,2.90107483,240.91,240.88,0.02744043]
[1758285373392,6.84,240.97,240.88,0.02744043]
[1758285373596,3.7339,240.91,240.88,0.02744043]
[1758285373893,6.84,240.89,240.88,0.02744043]
[1758285374093,9.74160126,240.89,240.88,0.02744043]
[1758285377196,9.74160125,240.89,240.88,0.02744043]
[1758285378499,67.35691722,241.07,240.88,6.98744043]
[1758285378500,6.84,240.95,240.88,6.98744043]
[1758285380099,6.84,240.95,240.88,0.02744043]
[1758285380701,6.84,241.01,240.88,6.98744043]
[1758285381804,3.7324,241.0,240.92,3.7335]
[1758285381999,6.84,241.01,240.91,6.96]
[1758285382398,6.84,241.02,240.96,3.7329]
[1758285382999,6.84,241.02,240.94,3.7614728]
[1758285383402,6.84,241.02,240.94,0.0281728]
[1758285383808,6.84,241.02,240.94,6.9881728]
[1758285384493,6.84,241.02,240.96,3.7329]
[1758285384805,6.84,241.02,240.94,6.9881728]
[1758285385207,6.84,241.07,240.95,6.96]
[1758285385599,6.84,241.07,240.96,3.7329]
[1758285385999,6.84,241.07,240.99,0.02739064]
[1758285387906,10.5713,241.07,240.99,0.02739064]
[1758285388406,10.5713,241.07,240.99,6.70739064]
[1758285389100,6.58,241.04,240.99,0.02739064]
[1758285389305,3.7316,241.05,240.99,0.02739064]
[1758285389506,6.58,241.04,240.99,0.02739064]
[1758285389799,3.7316,241.05,240.99,0.02739064]
[1758285390002,6.58,241.07,240.99,0.02739064]
[1758285390202,6.58,241.05,240.99,0.02739064]
[1758285391301,6.58,241.02,240.99,0.02739064]
[1758285391506,6.58,241.0,240.99,0.02739064]
[1758285395609,9.45496242,241.0,240.99,0.02739064]
[1758285395810,10.58701602,241.0,240.99,0.02739064]
[1758285398610,9.45496242,241.0,240.99,0.02739064]
[1758285400810,6.58,241.0,240.99,0.02739064]
[1758285401716,6.58,241.02,240.99,0.02739064]
[1758285403111,3.732,241.03,240.99,0.02739064]
[1758285403311,6.58,241.02,240.99,0.02739064]
[1758285403913,6.58,241.05,240.99,0.02739064]
[1758285404113,6.58,241.03,240.99,0.02739064]
[1758285404303,3.7318,241.04,240.99,0.02739064]
[1758285404511,6.58,241.02,240.99,0.02739064]
[1758285404703,3.7318,241.04,240.99,0.02739064]
[1758285404910,6.58,241.02,240.99,0.02739064]
[1758285405714,3.7321,241.03,240.99,0.02739064]
[1758285406317,6.58,241.02,240.99,0.02739064]
[1758285406511,3.7321,241.03,240.99,0.02739064]
[1758285406912,53.9920536,241.07,240.99,0.02739064]
[1758285406913,64.6279,241.06,240.99,0.02739064]
[1758285407108,6.58,241.04,240.99,0.02739064]
[1758285407315,2.86928257,241.03,240.99,0.02739064]
[1758285407617,2.86928257,241.02,240.99,0.02739064]
[1758285407808,6.58,241.0,240.99,0.02739064]
[1758285408207,6.58,241.06,240.99,0.02739064]
[1758285408411,2.86952789,241.05,240.99,0.02739064]
[1758285408611,6.58,241.06,240.99,0.02739064]
[1758285408813,2.86952688,241.05,240.99,0.02739064]
[1758285409013,6.58,241.06,240.99,0.02739064]
[1758285409215,2.86952688,241.05,240.99,0.02739064]
[1758285409410,6.58,241.06,240.99,0.02739064]
[1758285409609,6.58,241.04,240.99,0.02739064]
[1758285409813,6.58,241.02,240.99,0.02739064]
[1758285410011,6.58,241.0,240.99,0.02739064]
[1758285410618,9.450825,241.0,240.99,0.02739064]
[1758285410814,3.7324,241.01,240.99,0.02739064]
[1758285411118,6.58,241.05,240.99,0.02739064]
[1758285411311,2.87031832,241.04,241.0,6.68]
[1758285411512,6.58,241.05,241.0,6.68]
[1758285411712,2.8704318,241.04,241.0,6.68]
[1758285411913,102.4,241.07,240.99,7.83944424]
[1758285412112,2.87028372,241.06,240.99,7.83944424]
[1758285412309,2.87028372,241.05,240.99,7.83944424]
[1758285412507,102.4,241.07,240.99,7.83944424]
[1758285412710,2.87024373,241.06,240.99,7.83944424]
[1758285412912,2.87024373,241.05,240.99,7.83944424]
[1758285413216,3.7315,241.06,240.99,7.83944424]
[1758285413420,2.87054312,241.05,240.99,7.83944424]
[1758285413616,3.7315,241.06,240.99,7.83944424]
[1758285413814,2.87044138,241.05,240.99,7.83944424]
[1758285414015,3.7315,241.06,240.99,7.83944424]
[1758285414213,2.87044138,241.05,240.99,7.83944424]
[1758285414419,3.7315,241.06,240.99,7.83944424]
[1758285415317,2.87130869,241.05,240.99,7.83944424]
[1758285415517,3.7315,241.06,240.99,7.83944424]
[1758285415711,2.87130869,241.05,240.99,6.70739064]
[1758285415921,6.58,241.05,241.0,7.8120536]
[1758285416122,6.58,241.05,241.01,6.68]
[1758285417315,6.58,241.05,240.99,0.02739064]
[1758285417316,6.56,241.04,240.99,0.02739064]
[1758285417518,2.87208994,241.03,240.99,0.02739064]
[1758285417719,9.43208994,241.02,240.99,0.02739064]
[1758285417914,6.56,241.02,240.99,0.02739064]
[1758285418822,3.7324,241.01,240.99,0.02739064]
[1758285419821,10.4924,241.01,240.99,0.02739064]
[1758285420322,6.76,241.01,240.99,0.02739064]
[1758285422323,9.63651416,241.0,240.99,0.02739064]
[1758285422623,113.14856776,241.0,240.89,7.02]
[1758285422820,3.7333,240.95,240.89,7.02]
[1758285423122,6.76,240.93,240.89,7.02]
[1758285423713,0.02842628,240.93,240.85,3.7346]
[1758285423913,2.87840441,240.92,240.85,3.7346]
[1758285424114,0.02842628,240.93,240.85,3.7346]
[1758285424419,6.76,240.91,240.84,7.02]
[1758285424821,2.87837454,240.9,240.84,7.02]
[1758285425022,6.76,240.91,240.84,7.02]
[1758285425830,10.4938,240.91,240.84,7.02]
[1758285426827,6.76,240.91,240.84,7.02]
[1758285430437,3.76202628,240.93,240.85,3.7346]
[1758285430740,0.02842628,240.93,240.89,7.02]
[1758285430942,0.02842628,240.93,240.88,1.1320536]
[1758285431238,0.02842628,240.93,240.91,7.02]
[1758285431433,0.02842628,240.93,240.91,8.1520536]
[1758285431829,0.02842628,240.93,240.92,7.02]
[1758285433035,0.02842628,240.93,240.92,7.44]
[1758285442344,0.02842628,240.93,240.92,8.5720536]
[1758285444746,0.02842628,240.93,240.89,3.7341]
[1758285444949,0.02842628,240.93,240.89,4.8661536]
[1758285446041,0.02842628,240.93,240.9,7.02]
[1758285446244,0.02842628,240.93,240.89,4.8661536]
[1758285446746,0.02842628,240.93,240.9,7.02]
[1758285446938,0.02842628,240.93,240.89,4.8661536]
[1758285447644,0.02842628,240.93,240.9,7.02]
[1758285448542,0.02842628,240.93,240.89,10.7541]
[1758285448744,7.11,240.92,240.87,8.1520536]
[1758285449247,0.02842628,240.93,240.87,1.1320536]
[1758285449546,0.02842628,240.93,240.87,11.8863536]
[1758285450146,0.02842628,240.93,240.87,10.7543]
[1758285450547,0.02842628,240.93,240.88,3.7342]
[1758285451045,0.02842628,240.93,240.89,7.02]
[1758285451441,0.02842628,240.93,240.88,3.7342]
[1758285451742,0.02842628,240.93,240.89,7.02]
[1758285452448,0.02842628,240.93,240.88,4.8662536]
[1758285452748,0.02842628,240.93,240.89,7.02]
[1758285452953,0.02842628,240.93,240.9,3.734]
[1758285453146,0.02842628,240.93,240.91,7.02]
[1758285453953,0.02842628,240.93,240.9,3.734]
[1758285454147,0.02842628,240.93,240.91,7.02]
[1758285454753,0.02842628,240.93,240.9,3.734]
[1758285455049,0.02842628,240.93,240.91,7.02]
[1758285456553,0.02842628,240.93,240.9,3.734]
[1758285457247,0.02842628,240.93,240.91,3.7337]
[1758285457451,0.02842628,240.93,240.92,7.02]
[1758285463753,0.02842628,240.93,240.91,7.02]
[1758285464650,0.02842628,240.93,240.9,3.7338]
[1758285464856,0.02842628,240.93,240.9,10.7538]
[1758285465050,0.02842628,240.93,240.91,7.02]
[1758285470855,0.02842628,240.93,240.92,7.02]
[1758285477371,0.02842628,240.93,240.92,109.36]
[1758285477565,0.02842628,240.93,240.92,7.02]
[1758285477771,0.02842628,240.93,240.92,109.36]
[1758285478873,0.02842628,240.93,240.92,108.89]
[1758285490174,14.88,241.09,240.92,108.89]
[1758285490175,7.23,241.09,241.01,3.7321]
[1758285490370,7.23,241.07,241.01,3.7321]
[1758285490566,7.23,241.05,241.01,3.7321]
[1758285490866,7.23,241.03,241.01,3.7321]
[1758285491866,7.23,241.08,241.01,3.7321]
[1758285492069,2.87759186,241.07,241.01,3.7321]
[1758285492370,2.87759186,241.06,241.01,3.7321]
[1758285492574,7.23,241.04,241.01,3.7321]
[1758285492874,7.23,241.08,241.0,0.02812215]
[1758285493067,7.23,241.06,241.0,0.02812215]
[1758285493276,2.87686523,241.05,241.0,0.02812215]
[1758285493471,3.7312,241.09,241.0,0.02812215]
[1758285493672,7.23,241.07,241.0,0.02812215]
[1758285493873,2.87625608,241.06,241.0,3.76042215]
[1758285494075,2.87625608,241.05,241.0,3.76042215]
[1758285494374,7.23,241.07,241.0,3.76042215]
[1758285494674,2.87582803,241.06,241.0,3.76042215]
[1758285494976,2.87582803,241.05,241.0,3.76042215]
[1758285495177,7.23,241.08,241.0,3.76042215]
[1758285495377,3.7312,241.09,241.0,3.76042215]
[1758285495378,7.23,241.06,241.01,6.55]
[1758285495675,10.10548234,241.05,241.01,6.55]
[1758285495881,7.23,241.05,241.01,6.55]
[1758285496181,7.23,241.08,241.01,6.55]
[1758285496376,2.8752095,241.07,241.01,6.55]
[1758285496576,7.23,241.08,241.01,6.55]
[1758285497982,7.23,241.08,241.01,10.2822]
[1758285503583,7.23,241.08,241.01,6.55]
[1758285504281,7.23,241.08,241.07,3.7313]
[1758285507780,93.23538725,241.12,241.07,3.7313]
[1758285507984,7.23,241.11,241.07,10.2813]
[1758285508183,6.53,241.11,241.07,10.2813]
[1758285508380,6.53,241.11,241.07,3.7313]
[1758285508586,6.53,241.11,241.05,0.03148759]
[1758285509088,10.2608,241.11,241.05,0.03148759]
[1758285509985,3.7311,241.09,241.05,0.03148759]
[1758285510583,6.53,241.08,241.05,0.03148759]
[1758285510790,3.7311,241.09,241.05,0.03148759]
[1758285511082,6.53,241.08,241.05,0.03148759]
[1758285511279,3.7311,241.09,241.05,0.03148759]
[1758285511481,6.53,241.08,241.05,0.03148759]
[1758285511990,6.53,241.06,241.05,0.03148759]
[1758285517798,7.66138064,241.06,241.05,0.03148759]
[1758285520396,7.66138064,241.06,240.99,6.1782717]
[1758285520896,102.22,241.05,240.99,6.1782717]
[1758285525608,3.7318,241.04,240.99,6.1782717]
[1758285525811,1.13138064,241.0,240.95,7.0]
[1758285526106,6.53,240.99,240.95,7.0]
[1758285526503,6.56015194,240.99,240.95,7.0]
[1758285527009,6.53,240.98,240.95,7.0]
[1758285529715,1.13138064,240.97,240.91,7.0]
[1758285530107,10.2628,240.98,240.91,7.0]
[1758285531112,6.53,240.98,240.91,7.0]
[1758285532807,6.53,240.98,240.91,10.7337]
[1758285534012,6.53,240.98,240.92,3.7336]
[1758285535713,0.03015194,240.99,240.93,7.0]
[1758285537008,0.03015194,240.99,240.95,8.13138064]
[1758285537412,0.03015194,240.99,240.95,8.55138064]
[1758285538812,0.03015194,240.99,240.98,3.7327]
[1758285539010,0.03015194,240.99,240.98,10.2727]
[1758285540311,0.03015194,240.99,240.98,6.54]
[1758285540508,0.03015194,240.99,240.92,6.54]
[1758285541211,7.21015194,240.99,240.94,3.7333]
[1758285541413,7.21015194,240.99,240.95,6.54]
[1758285542109,0.03015194,240.99,240.95,6.54]
[1758285542315,0.03015194,240.99,240.94,3.7333]
[1758285542613,0.84153258,241.02,240.95,6.54]
[1758285544712,4.57373258,241.02,240.95,6.54]
[1758285545016,7.18,240.98,240.94,0.02752539]
[1758285545214,1.13138064,240.99,240.94,0.02752539]
[1758285545415,7.18,240.95,240.94,0.02752539]
[1758285548117,7.6,240.95,240.94,0.02752539]
[1758285549019,109.74,240.95,240.94,0.02752539]
[1758285551327,7.6,240.95,240.94,0.02752539]
[1758285551824,109.74,240.95,240.94,0.02752539]
[1758285553227,109.32,240.95,240.94,0.02752539]
[1758285553828,7.18,240.95,240.94,0.02752539]
[1758285554332,109.32,240.95,240.94,0.02752539]
[1758285555323,4.86448064,240.96,240.94,0.02752539]
[1758285555324,102.14,240.96,240.94,0.02752539]
[1758285555520,7.18,240.98,240.94,0.02752539]
[1758285555727,83.44,240.98,240.94,6.56752539]
[1758285556230,7.18,240.98,240.94,6.56752539]
[1758285556425,74.56,241.0,240.94,0.02752539]
[1758285556619,7.18,241.01,240.94,0.02752539]
[1758285558131,3.7325,241.0,240.94,0.02752539]
[1758285558334,7.18,240.99,240.94,0.02752539]
[1758285558629,1.13138064,241.0,240.94,0.02752539]
[1758285558630,3.733,240.97,240.94,0.02752539]
[1758285558819,7.18,240.96,240.94,0.02752539]
[1758285559332,7.18,240.95,240.94,0.02752539]
[1758285560227,109.32,240.95,240.94,0.02752539]
[1758285562331,7.18,240.93,240.79,6.54]
[1758285562523,19.04,240.92,240.82,6.54]
[1758285562728,37.76,240.91,240.82,6.54]
[1758285563123,12.04488064,240.93,240.82,10.2751]
[1758285563329,55.54,240.92,240.82,6.54]
[1758285563630,0.02670224,240.9,240.82,6.54]
[1758285564833,0.02670224,240.9,240.83,3.7349]
[1758285566835,0.02670224,240.9,240.84,6.54]
[1758285570733,3.76080224,240.9,240.84,6.54]
[1758285570939,10.29080224,240.9,240.84,6.54]
[1758285573944,0.02670224,240.9,240.87,6.95]
[1758285574245,0.02670224,240.9,240.86,1.13138064]
[1758285574941,0.02670224,240.9,240.87,6.95]
[1758285575144,0.02670224,240.9,240.86,1.13138064]
[1758285575338,0.02670224,240.9,240.87,6.95]
[1758285575539,0.02670224,240.9,240.86,1.13138064]
[1758285575845,0.02670224,240.9,240.89,6.95]
[1758285584654,58.0393,241.09,240.95,3.7331]
[1758285584955,6.53,241.07,240.95,10.6831]
[1758285585949,6.53,241.03,240.95,10.6831]
[1758285586357,6.53,241.03,240.99,0.02956516]
[1758285586654,3.7321,241.02,240.99,0.02956516]
[1758285587353,6.53,241.01,240.99,0.02956516]
[1758285587750,3.7321,241.02,240.99,0.02956516]
[1758285588546,103.98851158,241.08,240.99,0.02956516]
[1758285588547,3.7318,241.05,240.99,0.02956516]
[1758285588953,6.53,241.07,240.99,0.02956516]
[1758285589854,6.53,241.03,240.99,0.02956516]
[1758285590050,3.7319,241.04,240.99,0.02956516]
[1758285590550,6.53,241.03,240.99,0.02956516]
[1758285590751,3.7319,241.04,240.99,0.02956516]
[1758285591351,6.53,241.03,240.99,0.02956516]
[1758285592854,6.53,241.0,240.99,0.02956516]
[1758285595152,6.95,241.0,240.99,0.02956516]
[1758285595456,8.71851158,241.0,240.99,0.02956516]
[1758285596660,6.95,241.0,240.99,0.02956516]
[1758285596960,109.05,241.0,240.99,0.02956516]
[1758285597455,6.53,241.0,240.99,0.02956516]
[1758285612270,6.96,241.02,240.99,6.86956516]
[1758285612977,10.6919,241.04,241.0,6.84]
[1758285613274,6.96,241.03,240.99,0.02956516]
[1758285613469,6.96,241.03,240.99,6.86956516]
[1758285614375,6.96,241.03,240.99,10.60206516]
[1758285618278,6.96,241.03,241.0,6.84]
[1758285618475,102.08,241.04,241.01,6.84]
[1758285618975,3.7314,241.07,241.01,6.84]
[1758285619176,109.02,241.06,241.0,10.5723]
[1758285619373,109.02,241.06,241.02,6.84]
[1758285621184,102.06,241.06,241.02,6.84]
[1758285621482,6.96,241.05,241.02,6.84]
[1758285623883,3.7313,241.08,241.02,6.84]
[1758285624185,6.96,241.06,241.02,6.84]
[1758285625384,3.7314,241.07,241.02,6.84]
[1758285625588,6.96,241.06,241.02,6.84]
[1758285625788,3.7314,241.07,241.01,6.84]
[1758285626285,6.96,241.09,241.01,6.84]
[1758285629791,6.96,241.09,241.02,3.732]
[1758285630087,6.96,241.09,241.01,6.84]
[1758285630888,6.96,241.09,241.03,3.7319]
[1758285635696,6.96,241.09,241.04,3.7317]
[1758285636300,6.96,241.09,241.05,6.83]
[1758285637102,6.96,241.09,241.04,3.75888557]
[1758285637290,6.96,241.09,241.05,6.83]
[1758285637495,6.96,241.09,241.04,3.75888557]
[1758285637701,6.96,241.09,241.05,6.83]
[1758285639199,6.96,241.09,241.04,3.75888557]
[1758285639398,6.96,241.09,241.05,6.83]
[1758285639596,6.58,241.11,241.05,6.83]
[1758285639899,6.58,241.11,241.05,10.5616]
[1758285640398,6.58,241.11,241.06,3.7314]
[1758285640599,6.58,241.13,241.06,3.7314]
[1758285644005,10.3105,241.13,241.06,3.7314]
[1758285645406,10.3105,241.13,241.07,3.7312]
[1758285649006,6.58,241.13,241.07,3.7312]
[1758285651415,6.58,241.11,241.05,3.7317]
[1758285655410,6.58,241.11,241.07,10.5612]
[1758285655611,3.7303,241.14,241.07,10.5612]
[1758285655612,3.7303,241.14,241.08,6.83]
[1758285655810,6.58,241.13,241.08,6.83]
[1758285656511,3.7303,241.14,241.08,6.83]
[1758285657113,6.58,241.13,241.08,6.83]
[1758285657713,3.7303,241.14,241.08,6.83]
[1758285657913,6.58,241.13,241.08,6.83]
[1758285658212,3.7303,241.14,241.08,6.83]
[1758285658616,6.89,241.13,241.08,6.83]
[1758285658809,10.6203,241.14,241.08,6.83]
[1758285659118,10.6203,241.14,241.08,10.5611]
[1758285661815,6.89,241.15,241.09,3.7309]
[1758285662217,6.89,241.15,241.08,6.81]
[1758285662715,6.89,241.15,241.1,0.02702311]
[1758285662916,3.73,241.16,241.1,0.02702311]
[1758285663512,10.62,241.16,241.1,6.83702311]
[1758285663909,10.62,241.16,241.1,10.56782311]
[1758285664109,10.62,241.16,241.1,6.83702311]
[1758285664306,6.89,241.16,241.1,6.83702311]
[1758285665418,6.89,241.16,241.1,10.56792311]
[1758285665614,6.89,241.16,241.1,6.83702311]
[1758285669324,10.6201,241.16,241.1,6.83702311]
[1758285669523,6.89,241.16,241.1,0.02702311]
[1758285669724,6.89,241.14,241.1,0.02702311]
[1758285670019,6.89,241.14,241.1,6.83702311]
[1758285670223,6.89,241.17,241.1,6.83702311]
[1758285670621,6.89,241.12,241.1,0.02702311]
[1758285670926,58.02,241.17,241.1,0.02702311]
[1758285670927,6.89,241.14,241.1,0.02702311]
[1758285671624,6.89,241.11,241.1,0.02702311]
[1758285679818,7.31,241.11,241.1,0.02702311]
[1758285681122,6.89,241.04,240.99,1.13054475]
[1758285681319,3.7317,241.05,240.99,1.13054475]
[1758285681522,10.6217,241.05,240.99,1.13054475]
[1758285682430,6.91921791,241.04,240.99,1.13054475]
[1758285682623,6.89,241.03,241.0,6.81]
[1758285688135,0.02921791,241.04,240.99,1.13054475]
[1758285688724,6.76921791,241.04,240.99,1.13054475]
[1758285689130,6.76921791,241.04,241.0,6.81]
[1758285689332,6.76921791,241.04,240.99,1.13054475]
[1758285689542,6.76921791,241.04,241.0,6.81]
[1758285690837,6.76921791,241.04,240.99,1.13054475]
[1758285691034,6.76921791,241.04,241.0,6.81]
[1758285691436,6.76921791,241.04,240.99,1.13054475]
[1758285691637,6.76921791,241.04,241.0,6.81]
[1758285692237,0.02921791,241.04,241.0,6.81]
[1758285692430,6.74,241.03,241.0,6.81]
[1758285693137,6.74,241.03,240.99,1.13054475]
[1758285693340,6.74,241.03,241.0,6.81]
[1758285693539,6.74,241.03,240.99,1.13054475]
[1758285693736,6.74,241.03,241.0,6.81]
[1758285694136,6.74,241.03,240.99,1.11054475]
[1758285694940,6.74,241.03,241.0,6.81]
[1758285695241,0.02921791,241.04,241.0,6.81]
[1758285695635,0.02921791,241.04,240.99,1.11054475]
[1758285696339,0.02921791,241.04,241.0,6.81]
[1758285696538,6.76921791,241.04,240.99,1.11054475]
[1758285696940,6.76921791,241.04,241.0,6.81]
[1758285697144,6.76921791,241.04,240.99,1.11054475]
[1758285697741,6.76921791,241.04,241.0,6.81]
[1758285698434,6.76921791,241.04,240.99,1.11054475]
[1758285698631,6.76921791,241.04,241.0,6.81]
[1758285699247,6.76921791,241.04,240.99,1.11054475]
[1758285699441,6.74,241.03,241.0,6.81]
[1758285699640,6.74,241.03,240.99,1.11054475]
[1758285699847,6.74,241.03,240.96,7.94054475]
[1758285700947,10.4721,241.03,240.96,7.94054475]
[1758285701747,10.4721,241.03,240.96,6.81]
[1758285703749,0.02921791,241.04,240.93,8.57752702]
[1758285703944,6.74,241.03,240.93,8.57752702]